bitfinex/quotes_SOLUSD_20251218
["timestamp","ask_amount","ask_price","bid_price","bid_amount"]
[1766068821018,25.46624388,125.69,125.56,7.96414741]
[1766068821019,10.48300255,125.61,125.56,7.96414741]
[1766068821337,9.76300255,125.62,125.56,7.96414741]
[1766068821518,9.76300255,125.6,125.55,36.86542881]
[1766068821718,10.48300255,125.61,125.55,36.86542881]
[1766068821929,9.76300255,125.62,125.56,10.48300255]
[1766068822139,0.72,125.64,125.56,10.48300255]
[1766068822340,10.48300255,125.63,125.57,9.76300255]
[1766068822540,9.76300255,125.64,125.57,0.72]
[1766068822840,9.76300255,125.64,125.59,9.76300255]
[1766068823040,9.76300255,125.64,125.59,17.72496022]
[1766068823415,9.76300255,125.62,125.58,7.96300255]
[1766068823623,10.48300255,125.61,125.56,7.96408054]
[1766068823826,10.48300255,125.61,125.54,10.43767296]
[1766068823827,10.48300255,125.58,125.5,0.72]
[1766068824128,9.78631583,125.57,125.51,10.50631583]
[1766068824332,9.78631583,125.57,125.52,9.78631583]
[1766068824828,9.78631583,125.57,125.53,7.96619471]
[1766068825032,0.72,125.58,125.52,7.96681381]
[1766068825226,9.78631583,125.57,125.51,37.67241406]
[1766068825534,0.72,125.58,125.53,10.50631583]
[1766068825535,9.78631583,125.58,125.53,10.50631583]
[1766068825715,9.78631583,125.61,125.56,9.78631583]
[1766068825919,10.50631583,125.62,125.55,0.72]
[1766068826138,0.72,125.62,125.55,10.50631583]
[1766068826347,0.72,125.66,125.58,10.50631583]
[1766068826530,9.78631583,125.63,125.58,10.50631583]
[1766068826852,0.72,125.69,125.62,9.78631583]
[1766068827144,9.78631583,125.67,125.62,7.96051584]
[1766068827348,0.72,125.68,125.62,7.96051584]
[1766068827550,8.7,125.74,125.62,7.96051584]
[1766068827551,0.72,125.72,125.65,6.78684284]
[1766068827731,6.78684284,125.73,125.67,6.78684284]
[1766068827919,6.78684284,125.72,125.66,0.72]
[1766068828124,6.78684284,125.69,125.62,27.86180544]
[1766068828319,6.78684284,125.67,125.62,23.44735868]
[1766068828735,7.50684284,125.68,125.63,6.78684284]
[1766068828948,0.72,125.68,125.63,6.78684284]
[1766068829151,0.72,125.68,125.64,7.95924864]
[1766068829446,0.72,125.68,125.62,8.7]
[1766068829621,6.78684284,125.68,125.63,7.95986451]
[1766068829817,0.72,125.7,125.6,7.96138151]
[1766068829818,0.72,125.66,125.6,7.96138151]
[1766068830022,6.78684284,125.64,125.59,27.09990817]
[1766068830222,0.72,125.63,125.59,8.7]
[1766068830457,6.78684284,125.65,125.59,16.20684284]
[1766068830751,6.78684284,125.66,125.6,7.50684284]
[1766068830955,6.78684284,125.66,125.61,7.960921]
[1766068831252,6.78684284,125.65,125.61,7.960921]
[1766068831544,6.78684284,125.66,125.61,7.960921]
[1766068831752,0.72,125.67,125.61,7.960921]
[1766068831956,6.78684284,125.65,125.61,7.960921]
[1766068832139,6.78684284,125.64,125.6,7.96153758]
[1766068832328,0.72,125.65,125.6,7.96153758]
[1766068832641,18.39382219,125.69,125.6,7.96153758]
[1766068832642,6.78684284,125.67,125.62,6.78684284]
[1766068832839,6.78684284,125.67,125.61,0.72]
[1766068832840,0.05,125.73,125.67,0.72]
[1766068833038,0.05,125.75,125.7,6.78684284]
[1766068833238,6.78684284,125.74,125.67,29.31305985]
[1766068833441,6.78684284,125.74,125.69,14.74249612]
[1766068833645,0.72,125.75,125.7,14.74211504]
[1766068833841,1e-08,125.78,125.74,6.78684284]
[1766068834039,0.05,125.82,125.77,6.78684284]
[1766068834238,0.72,125.83,125.78,6.78684284]
[1766068834468,17.9445158,125.83,125.77,6.78684284]
[1766068834633,0.72,125.83,125.75,8.7]
[1766068834832,0.72,125.83,125.67,40.24343551]
[1766068834833,6.78684284,125.8,125.74,15.48684284]
[1766068835039,6.78684284,125.8,125.74,6.78684284]
[1766068835040,6.78684284,125.79,125.74,6.78684284]
[1766068835338,6.78684284,125.81,125.76,6.78684284]
[1766068835533,6.78684284,125.81,125.75,8.67228628]
[1766068835734,0.72,125.79,125.74,7.95288769]
[1766068835942,6.78684284,125.76,125.71,7.95464011]
[1766068836135,6.78684284,125.76,125.64,6.78684284]
[1766068836136,6.78684284,125.73,125.67,17.37734861]
[1766068836553,11.15767296,125.73,125.67,8.7]
[1766068836762,6.78684284,125.71,125.67,8.7]
[1766068836971,0.72,125.72,125.67,15.48684284]
[1766068837260,17.2245158,125.75,125.69,14.74292526]
[1766068837558,6.78684284,125.72,125.67,15.48684284]
[1766068837861,6.78684284,125.73,125.68,7.95650022]
[1766068838048,6.78684284,125.72,125.67,23.44401226]
[1766068838244,0.72,125.74,125.68,7.95670864]
[1766068838542,6.78684284,125.72,125.67,15.48684284]
[1766068838950,6.78684284,125.71,125.67,16.65700195]
[1766068839148,6.78684284,125.71,125.66,7.95784254]
[1766068839569,0.72,125.72,125.66,7.95784254]
[1766068839745,6.78684284,125.71,125.66,6.78684284]
[1766068840060,6.78684284,125.71,125.65,7.95839797]
[1766068840061,6.78684284,125.7,125.65,7.95839797]
[1766068840440,6.78684284,125.7,125.65,14.74524081]
[1766068840640,6.78684284,125.7,125.64,15.48684284]
[1766068840641,6.78684284,125.69,125.64,15.48684284]
[1766068840887,18.39193776,125.72,125.62,6.78684284]
[1766068840888,6.78684284,125.68,125.62,6.78684284]
[1766068841039,6.78684284,125.67,125.62,15.48684284]
[1766068841233,6.78684284,125.68,125.63,7.95969961]
[1766068841438,6.78684284,125.67,125.62,15.48684284]
[1766068841654,0.72,125.68,125.62,23.44690695]
[1766068841861,6.78684284,125.67,125.62,16.66006411]
[1766068842060,6.78684284,125.67,125.62,23.44690695]
[1766068842662,7.50684284,125.66,125.62,7.9601829]
[1766068842867,10.43767296,125.69,125.61,7.96104042]
[1766068843044,6.78684284,125.65,125.61,7.96104042]
[1766068843440,6.78684284,125.64,125.6,7.96177412]
[1766068843641,6.78684284,125.64,125.59,7.96221863]
[1766068843873,6.78684284,125.64,125.58,28.60688487]
[1766068843874,6.78684284,125.61,125.57,7.96321581]
[1766068844040,0.72,125.62,125.54,27.41011689]
[1766068844041,6.78684284,125.6,125.54,27.41011689]
[1766068844235,6.78684284,125.59,125.55,7.96485351]
[1766068844759,6.78684284,125.6,125.55,7.96485351]
[1766068844956,11.15767296,125.61,125.55,7.96485351]
[1766068845151,0.72,125.61,125.55,14.75169635]
[1766068845480,7.47137097,125.62,125.56,7.47137097]
[1766068845660,7.47137097,125.61,125.56,7.47137097]
[1766068845860,10.43767296,125.63,125.55,8.67485351]
[1766068845861,7.47137097,125.6,125.55,7.96485351]
[1766068846175,7.47137097,125.59,125.55,7.96485351]
[1766068846669,7.47137097,125.6,125.55,7.96485351]
[1766068847274,7.47137097,125.6,125.55,35.34860998]
[1766068847565,7.47137097,125.63,125.57,8.18137097]
[1766068847760,8.19137097,125.64,125.59,7.47137097]
[1766068848267,0.72,125.64,125.58,16.17137097]
[1766068848454,8.19137097,125.64,125.58,16.17137097]
[1766068848657,0.72,125.66,125.6,7.47137097]
[1766068848858,7.47137097,125.64,125.59,0.71]
[1766068849043,7.47137097,125.65,125.59,8.18137097]
[1766068849248,11.15767296,125.66,125.61,7.96114959]
[1766068849478,0.72,125.7,125.62,8.18137097]
[1766068849669,0.72,125.69,125.62,0.71]
[1766068849843,8.19137097,125.69,125.63,7.47137097]
[1766068850047,8.19137097,125.69,125.64,7.47137097]
[1766068850495,0.72,125.74,125.68,8.18137097]
[1766068850767,8.7,125.79,125.67,8.7]
[1766068850768,7.47137097,125.71,125.67,8.7]
[1766068850947,7.47137097,125.7,125.64,7.47137097]
[1766068851348,7.47137097,125.67,125.63,7.95945601]
[1766068851652,7.47137097,125.67,125.62,7.47137097]
[1766068851968,10.43767296,125.69,125.63,7.95965197]
[1766068852164,8.7,125.73,125.65,8.18137097]
[1766068852469,7.47137097,125.71,125.65,0.71]
[1766068852770,7.47137097,125.71,125.66,7.47137097]
[1766068852976,7.47137097,125.73,125.68,7.47137097]
[1766068853146,7.47137097,125.71,125.65,8.7]
[1766068853344,7.47137097,125.74,125.69,7.47137097]
[1766068853555,0.72,125.75,125.68,8.18137097]
[1766068853556,7.47137097,125.73,125.68,8.18137097]
[1766068853754,11.15767296,125.75,125.68,8.18137097]
[1766068853954,0.72,125.8,125.71,8.18137097]
[1766068854155,7.47137097,125.77,125.71,8.18137097]
[1766068854368,0.72,125.78,125.72,7.47137097]
[1766068854573,8.19137097,125.78,125.72,7.47137097]
[1766068854869,7.47137097,125.76,125.71,8.18137097]
[1766068855082,8.19137097,125.78,125.72,7.47137097]
[1766068855254,8.19137097,125.78,125.74,7.95291872]
[1766068855457,7.94659885,125.84,125.74,15.42428969]
[1766068855774,7.47137097,125.79,125.74,27.83521552]
[1766068855975,7.47137097,125.8,125.74,44.00658649]
[1766068856168,8.19137097,125.81,125.75,7.47137097]
[1766068856367,7.47137097,125.82,125.77,7.47137097]
[1766068856672,0.72,125.84,125.77,8.18137097]
[1766068856673,7.47137097,125.83,125.77,8.18137097]
[1766068856862,7.47137097,125.82,125.77,0.71]
[1766068857063,0.72,125.83,125.74,27.83521552]
[1766068857265,7.47137097,125.8,125.75,7.47137097]
[1766068857452,7.47137097,125.81,125.76,7.95165394]
[1766068857853,0.72,125.82,125.77,10.43767296]
[1766068858073,7.47137097,125.82,125.77,17.90904393]
[1766068858255,7.47137097,125.81,125.76,7.95165394]
[1766068858465,7.47137097,125.83,125.77,7.47137097]
[1766068858662,11.15767296,125.84,125.77,8.18137097]
[1766068858866,7.47137097,125.83,125.77,8.18137097]
[1766068859278,7.47137097,125.81,125.76,24.12302491]
[1766068859477,7.47137097,125.8,125.76,8.7]
[1766068859653,7.47137097,125.81,125.76,16.65162022]
[1766068860054,7.47137097,125.8,125.76,8.7]
[1766068860263,10.43767296,125.84,125.74,17.90904393]
[1766068860264,8.15137097,125.79,125.74,10.43767296]
[1766068860454,11.11767296,125.84,125.76,8.15137097]
[1766068860775,11.11767296,125.84,125.74,10.43767296]
[1766068860776,7.47137097,125.78,125.73,8.7]
[1766068860975,7.47137097,125.76,125.72,7.95405801]
[1766068861152,7.47137097,125.76,125.71,7.95459799]
[1766068861560,0.68,125.81,125.74,7.47137097]
[1766068861769,0.68,125.81,125.71,7.95459799]
[1766068861770,7.47137097,125.77,125.71,7.95459799]
[1766068861954,7.47137097,125.75,125.69,0.68]
[1766068862154,7.47137097,125.74,125.7,7.95527472]
[1766068862400,7.47137097,125.73,125.68,8.7]
[1766068862682,10.43767296,125.74,125.65,16.65837895]
[1766068862988,10.43767296,125.74,125.66,7.47137097]
[1766068863189,0.05,125.77,125.69,7.47137097]
[1766068863354,76.13869398,125.82,125.72,20.06536112]
[1766068863355,0.68,125.78,125.72,20.06536112]
[1766068863555,0.05,125.82,125.72,18.39185686]
[1766068863762,0.68,125.83,125.79,12.11117722]
[1766068863955,0.68,125.83,125.77,0.68]
[1766068864176,12.11117722,125.8,125.75,22.54885018]
[1766068864376,0.68,125.86,125.78,12.11117722]
[1766068864683,0.68,125.86,125.75,19.24761788]
[1766068864684,12.11117722,125.84,125.79,0.68]
[1766068864881,8.14412155,125.88,125.77,12.79117722]
[1766068864882,12.11117722,125.83,125.77,12.79117722]
[1766068865257,12.11117722,125.82,125.77,12.79117722]
[1766068865458,12.79117722,125.85,125.79,12.11117722]
[1766068865653,0.2,125.88,125.79,8.7]
[1766068865654,12.11117722,125.84,125.79,8.7]
[1766068865859,10.43767296,125.86,125.79,12.11117722]
[1766068866059,12.11117722,125.87,125.8,0.68]
[1766068866283,12.11117722,125.84,125.78,38.26403644]
[1766068866484,12.11117722,125.83,125.78,20.06156678]
[1766068866662,12.11117722,125.84,125.78,7.95038956]
[1766068866874,12.11117722,125.84,125.79,12.11117722]
[1766068867079,12.11117722,125.84,125.78,28.50636348]
[1766068867279,12.11117722,125.83,125.78,8.63038956]
[1766068867581,0.68,125.78,125.73,7.95307543]
[1766068867783,12.11117722,125.77,125.73,7.95307543]
[1766068868097,12.79117722,125.74,125.68,12.11117722]
[1766068868298,12.79117722,125.74,125.7,7.95540204]
[1766068868598,12.11117722,125.74,125.7,7.955254]
[1766068868766,12.11117722,125.75,125.7,12.11117722]
[1766068868966,12.11117722,125.74,125.68,10.43767296]
[1766068869162,12.11117722,125.73,125.67,39.96038162]
[1766068869370,12.11117722,125.71,125.67,7.95722642]
[1766068869801,12.79117722,125.72,125.67,7.95722642]
[1766068870009,0.68,125.77,125.67,7.95722642]
[1766068870305,12.79117722,125.75,125.7,12.11117722]
[1766068870509,10.43767296,125.78,125.71,0.68]
[1766068870801,0.68,125.8,125.76,12.11117722]
[1766068871373,0.68,125.8,125.75,12.11117722]
[1766068871568,0.68,125.78,125.73,12.11117722]
[1766068871794,0.68,125.78,125.73,20.06451505]
[1766068871994,12.79117722,125.78,125.73,20.06451505]
[1766068872175,12.11117722,125.79,125.72,0.68]
[1766068872500,12.79117722,125.74,125.68,12.11117722]
[1766068872802,12.11117722,125.75,125.7,12.11117722]
[1766068873001,0.68,125.76,125.7,12.11117722]
[1766068873301,12.11117722,125.74,125.69,20.06706741]
[1766068873495,12.11117722,125.74,125.67,39.69031047]
[1766068873679,19.87505689,125.79,125.73,12.11117722]
[1766068873680,0.68,125.79,125.73,12.11117722]
[1766068873995,12.11117722,125.78,125.73,12.11117722]
[1766068874196,12.79117722,125.77,125.71,8.7]
[1766068874369,27.0668248,125.8,125.71,8.7]
[1766068874370,12.11117722,125.79,125.74,12.11117722]
[1766068874571,12.11117722,125.79,125.72,0.66]
[1766068874572,12.11117722,125.78,125.72,12.77117722]
[1766068874804,12.11117722,125.77,125.71,10.43767296]
[1766068874980,0.68,125.77,125.72,12.11117722]
[1766068875298,0.68,125.77,125.71,10.43767296]
[1766068875299,12.11117722,125.76,125.7,8.7]
[1766068875498,12.79117722,125.79,125.74,12.11117722]
[1766068875795,12.11117722,125.77,125.72,20.06499608]
[1766068876000,12.79117722,125.78,125.73,12.11117722]
[1766068876170,0.68,125.78,125.74,12.11117722]
[1766068876366,12.79117722,125.77,125.71,12.11117722]
[1766068876584,12.11117722,125.76,125.71,12.11117722]
[1766068876789,12.79117722,125.76,125.71,12.11117722]
[1766068876996,12.79117722,125.76,125.71,20.06592053]
[1766068877181,12.79117722,125.75,125.7,28.76649081]
[1766068877396,45.31189299,125.8,125.65,19.89570297]
[1766068877397,12.79117722,125.71,125.65,19.89570297]
[1766068877596,0.68,125.71,125.66,12.11117722]
[1766068878104,12.79117722,125.71,125.66,12.11117722]
[1766068878280,12.11117722,125.73,125.68,12.11117722]
[1766068878808,11.11767296,125.74,125.67,0.66]
[1766068878809,12.79117722,125.72,125.67,12.11117722]
[1766068878978,0.68,125.71,125.66,20.81117722]
[1766068879379,12.11117722,125.72,125.67,12.11117722]
[1766068879600,17.48994492,125.77,125.68,20.06789268]
[1766068879601,0.68,125.73,125.68,20.06789268]
[1766068879805,12.79117722,125.73,125.68,20.06789268]
[1766068880004,27.92761788,125.77,125.66,21.47117722]
[1766068880005,12.11117722,125.71,125.66,21.47117722]
[1766068880207,0.68,125.72,125.67,20.06848271]
[1766068880502,12.79117722,125.72,125.67,20.06848271]
[1766068880673,0.68,125.72,125.67,7.95730549]
[1766068880879,12.79117722,125.72,125.66,29.42888596]
[1766068881080,18.39089592,125.74,125.66,8.7]
[1766068881081,12.11117722,125.71,125.66,8.7]
[1766068881280,10.43767296,125.71,125.65,7.95835496]
[1766068881502,12.11117722,125.69,125.63,20.55910997]
[1766068881706,0.68,125.7,125.61,19.13767296]
[1766068881707,8.68,125.72,125.65,12.11117722]
[1766068881879,8.68,125.72,125.64,7.9588949]
[1766068881880,12.11117722,125.69,125.64,7.9588949]
[1766068882079,12.11117722,125.67,125.62,0.66]
[1766068882302,12.11117722,125.68,125.63,7.95979785]
[1766068882486,16.6341848,125.72,125.63,7.95979785]
[1766068882487,0.68,125.72,125.65,12.77117722]
[1766068882691,7.95187483,125.76,125.67,12.11117722]
[1766068882903,12.11117722,125.71,125.66,0.66]
[1766068883207,12.11117722,125.69,125.65,8.7]
[1766068883507,12.11117722,125.73,125.63,40.63068055]
[1766068883508,12.11117722,125.68,125.63,40.63068055]
[1766068883683,12.79117722,125.7,125.64,12.77117722]
[1766068883877,11.11767296,125.72,125.65,12.11117722]
[1766068884110,12.79117722,125.72,125.66,12.11117722]
[1766068884309,12.11117722,125.72,125.67,12.11117722]
[1766068884609,12.11117722,125.72,125.67,0.66]
[1766068885204,12.11117722,125.71,125.67,0.66]
[1766068885402,7.95186826,125.76,125.68,12.77117722]
[1766068885403,12.11117722,125.74,125.68,12.77117722]
[1766068885604,12.79117722,125.74,125.69,7.95608242]
[1766068885814,12.11117722,125.72,125.68,8.61645047]
[1766068886306,12.11117722,125.73,125.68,8.61645047]
[1766068886482,12.79117722,125.74,125.68,40.61941635]
[1766068886678,0.68,125.77,125.7,12.77117722]
[1766068886915,12.79117722,125.77,125.72,12.11117722]
[1766068887078,12.11117722,125.75,125.71,10.43767296]
[1766068887279,12.11117722,125.75,125.7,20.81117722]
[1766068887480,12.11117722,125.74,125.7,8.7]
[1766068887718,12.11117722,125.73,125.69,18.39370604]
[1766068888210,12.11117722,125.7,125.66,16.65771572]
[1766068888397,12.11117722,125.7,125.67,7.9573282]
[1766068888580,12.11117722,125.71,125.67,7.9573282]
[1766068888783,12.11117722,125.71,125.67,7.9570552]
[1766068889119,0.68,125.76,125.69,12.11117722]
[1766068889324,12.11117722,125.74,125.69,12.11117722]
[1766068889615,12.11117722,125.72,125.68,7.95642421]
[1766068889792,12.11117722,125.71,125.67,18.39472836]
[1766068890201,46.94664182,125.77,125.67,18.39472836]
[1766068890202,46.94664182,125.77,125.68,7.95638711]
[1766068890406,8.80994492,125.79,125.69,0.66]
[1766068890407,0.68,125.76,125.69,0.66]
[1766068890708,12.11117722,125.75,125.7,22.54885018]
[1766068891011,0.68,125.76,125.7,22.54885018]
[1766068891185,12.11117722,125.75,125.7,11.09767296]
[1766068891380,12.11117722,125.74,125.7,10.43767296]
[1766068891893,12.11117722,125.74,125.7,18.3928553]
[1766068892293,12.11117722,125.74,125.7,7.95518234]
[1766068892491,12.11117722,125.73,125.68,19.05427724]
[1766068892692,12.11117722,125.71,125.68,10.43767296]
[1766068892914,12.11117722,125.72,125.68,7.95668566]
[1766068893113,0.68,125.73,125.69,7.95566926]
[1766068893314,12.79117722,125.73,125.69,7.95566926]
[1766068893516,12.11117722,125.72,125.69,7.95598111]
[1766068893898,12.79117722,125.73,125.68,7.95671546]
[1766068894213,12.11117722,125.74,125.69,12.11117722]
[1766068894413,12.79117722,125.75,125.69,12.11117722]
[1766068894913,12.11117722,125.71,125.67,7.95703585]
[1766068895222,12.12183104,125.73,125.68,12.78183104]
[1766068895393,0.68,125.75,125.68,12.78183104]
[1766068895599,12.12183104,125.73,125.68,12.78183104]
[1766068895808,12.12183104,125.74,125.7,10.43767296]
[1766068895986,7.95038956,125.78,125.7,30.51450008]
[1766068895987,0.68,125.78,125.7,30.51450008]
[1766068896187,0.05,125.82,125.73,12.78183104]
[1766068896428,12.12183104,125.8,125.75,0.66]
[1766068896718,0.68,125.8,125.73,31.919504]
[1766068896922,12.12183104,125.79,125.74,12.12183104]
[1766068897627,4.19025665,125.87,125.77,12.12183104]
[1766068897789,4.19025665,125.87,125.77,21.48183104]
[1766068897790,12.12183104,125.82,125.77,21.48183104]
[1766068897991,12.80183104,125.83,125.78,7.95038956]
[1766068898300,12.12183104,125.82,125.78,7.95038956]
[1766068898820,12.12183104,125.81,125.77,17.31073118]
[1766068899027,0.68,125.83,125.77,29.43256222]
[1766068899200,0.68,125.87,125.8,23.219504]
[1766068899395,12.12183104,125.86,125.81,12.12183104]
[1766068899734,0.68,125.87,125.81,21.48183104]
[1766068900021,12.12183104,125.87,125.82,20.06969306]
[1766068900315,0.2,125.88,125.85,10.43767296]
[1766068900622,12.32183104,125.88,125.85,10.43767296]
[1766068901011,0.2,125.88,125.85,10.43767296]
[1766068901314,12.80183104,125.86,125.81,8.7]
[1766068901515,12.80183104,125.85,125.81,8.7]
[1766068901697,12.12183104,125.83,125.79,10.43767296]
[1766068901891,12.12183104,125.82,125.78,7.95014919]
[1766068902091,0.68,125.82,125.76,29.43333267]
[1766068902291,12.80183104,125.81,125.76,16.65150163]
[1766068902719,0.68,125.81,125.77,7.95093589]
[1766068902891,0.68,125.81,125.76,16.65128019]
[1766068902892,12.80183104,125.81,125.76,16.65128019]
[1766068903092,12.80183104,125.81,125.77,7.9509411]
[1766068903315,12.80183104,125.81,125.76,28.77331551]
[1766068903510,0.68,125.81,125.77,7.95079689]
[1766068903713,12.12183104,125.82,125.76,16.65139008]
[1766068903997,0.71,125.81,125.76,16.65140375]
[1766068904200,12.83183104,125.81,125.76,16.65140375]
[1766068904406,12.12183104,125.8,125.76,16.65140375]
[1766068904701,12.12183104,125.8,125.76,8.7]
[1766068904909,12.83183104,125.8,125.76,16.65164883]
[1766068905107,12.12183104,125.79,125.76,7.95164883]
[1766068905497,0.71,125.84,125.76,20.07347987]
[1766068905703,12.12183104,125.81,125.76,20.76347987]
[1766068906101,12.12183104,125.81,125.76,40.64261473]
[1766068906418,12.12183104,125.81,125.76,28.52078369]
[1766068906719,12.12183104,125.81,125.76,40.64261473]
[1766068907127,0.71,125.85,125.79,10.43767296]
[1766068907305,0.71,125.85,125.78,12.12183104]
[1766068907306,12.12183104,125.83,125.78,12.12183104]
[1766068907498,12.12183104,125.82,125.77,0.69]
[1766068907697,12.12183104,125.81,125.77,9.39]
[1766068907925,12.12183104,125.81,125.77,8.7]
[1766068908427,12.83183104,125.87,125.81,0.69]
[1766068908598,12.83183104,125.87,125.81,12.81183104]
[1766068908802,12.83183104,125.87,125.81,0.69]
[1766068909135,13.03183104,125.88,125.82,0.69]
[1766068909322,13.03183104,125.88,125.82,12.81183104]
[1766068910019,12.83183104,125.87,125.81,12.12183104]
[1766068910229,12.83183104,125.86,125.81,7.94819731]
[1766068910549,12.12183104,125.85,125.8,30.949504]
[1766068910728,8.14453186,125.88,125.77,20.5667212]
[1766068910729,12.83183104,125.84,125.77,20.5667212]
[1766068910905,8.14453186,125.88,125.78,7.95025895]
[1766068910906,12.12183104,125.82,125.78,7.95025895]
[1766068911105,12.12183104,125.81,125.78,7.95025895]
[1766068911400,0.71,125.82,125.78,7.95025895]
[1766068911617,0.71,125.82,125.75,43.12931779]
[1766068911819,12.83183104,125.82,125.79,7.9493953]
[1766068912220,12.12183104,125.81,125.74,17.50994492]
[1766068912433,12.12183104,125.81,125.77,7.95085561]
[1766068912606,12.83183104,125.82,125.77,20.07268665]
[1766068912802,12.12183104,125.84,125.79,12.81183104]
[1766068913203,12.12183104,125.85,125.79,12.81183104]
[1766068913431,12.12183104,125.84,125.79,12.81183104]
[1766068913907,12.12183104,125.83,125.78,12.12183104]
[1766068914123,12.83183104,125.83,125.77,49.34024091]
[1766068914336,12.12183104,125.82,125.77,37.21840987]
[1766068914536,12.12183104,125.82,125.77,17.34085561]
[1766068914717,12.12183104,125.82,125.77,29.46268665]
[1766068914919,12.12183104,125.81,125.77,16.65085561]
[1766068915240,12.83183104,125.8,125.76,7.95153449]
[1766068915421,12.83183104,125.8,125.77,7.95086111]
[1766068915422,0.71,125.8,125.77,7.95086111]
[1766068915627,0.71,125.83,125.77,20.76269215]
[1766068915821,0.71,125.83,125.77,7.95089464]
[1766068916031,12.83183104,125.82,125.77,7.95089464]
[1766068916342,12.83183104,125.82,125.77,27.8284489]
[1766068916541,10.43767296,125.85,125.77,39.95027994]
[1766068916840,12.83183104,125.83,125.77,49.34027994]
[1766068917039,12.12183104,125.82,125.77,37.2184489]
[1766068917536,12.12183104,125.8,125.77,8.7]
[1766068918054,12.83183104,125.81,125.77,8.7]
[1766068918420,0.2,125.88,125.81,0.69]
[1766068918739,12.83183104,125.85,125.8,8.7]
[1766068918912,12.12183104,125.83,125.8,8.7]
[1766068919738,12.83183104,125.83,125.8,8.7]
[1766068919942,0.71,125.85,125.8,8.7]
[1766068920328,0.91,125.88,125.82,7.94786202]
[1766068920524,0.2,125.88,125.85,23.259504]
[1766068920730,12.22183104,125.91,125.86,0.7]
[1766068920931,0.1,125.91,125.88,12.12183104]
[1766068921138,0.1,125.91,125.88,21.63177596]
[1766068921338,12.79183104,125.9,125.85,19.13767296]
[1766068921538,0.1,125.91,125.88,0.7]
[1766068922047,0.1,125.91,125.85,11.13767296]
[1766068922048,12.12183104,125.9,125.85,11.13767296]
[1766068922234,12.12183104,125.9,125.85,31.259504]
[1766068922544,0.1,125.95,125.91,0.7]
[1766068922843,0.15,125.98,125.95,8.80994492]
[1766068922844,0.1,125.98,125.95,8.80994492]
[1766068923049,0.15,125.99,125.97,12.12183104]
[1766068923343,0.1,125.99,125.96,0.7]
[1766068923543,0.1,125.99,125.94,10.43767296]
[1766068923750,0.67,125.98,125.92,23.259504]
[1766068923930,0.1,125.99,125.94,12.12183104]
[1766068924248,0.1,125.99,125.86,7.94533608]
[1766068924249,12.12183104,125.95,125.86,7.94533608]
[1766068924428,0.67,125.88,125.85,0.05]
[1766068924623,10.43767296,125.91,125.81,8.68]
[1766068924624,12.79183104,125.86,125.81,8.68]
[1766068924843,12.12183104,125.84,125.8,18.38679855]
[1766068925024,12.12183104,125.83,125.78,28.75207601]
[1766068925224,12.12183104,125.83,125.78,20.80183104]
[1766068925437,7.44590337,125.82,125.78,9.38]
[1766068925631,19.24761788,125.87,125.79,0.7]
[1766068925632,19.91761788,125.87,125.79,0.7]
[1766068925950,0.67,125.86,125.77,25.83442389]
[1766068926136,7.44590337,125.81,125.76,8.65146311]
[1766068926326,11.10767296,125.87,125.79,0.7]
[1766068926524,7.44590337,125.81,125.77,10.43767296]
[1766068926724,7.44590337,125.79,125.75,7.95204806]
[1766068926942,0.67,125.82,125.76,7.95156373]
[1766068926943,7.44590337,125.8,125.76,7.95156373]
[1766068927129,7.44590337,125.8,125.75,26.53563754]
[1766068927334,7.44590337,125.76,125.65,0.79586152]
[1766068927533,7.44590337,125.75,125.7,24.78078672]
[1766068927734,7.44590337,125.75,125.7,27.72255631]
[1766068927935,0.67,125.77,125.7,27.72255631]
[1766068928136,19.78767296,125.81,125.73,7.44590337]
[1766068928349,7.44590337,125.77,125.72,7.9541839]
[1766068928541,7.44590337,125.76,125.72,7.9541839]
[1766068929046,7.44590337,125.78,125.73,7.44590337]
[1766068929222,7.44590337,125.77,125.72,7.9541839]
[1766068929429,7.44590337,125.77,125.72,15.40008727]
[1766068929761,0.67,125.82,125.75,17.88357633]
[1766068929929,0.67,125.82,125.76,0.7]
[1766068930323,7.44590337,125.83,125.78,16.09629293]
[1766068930544,7.94514958,125.87,125.78,16.09629293]
[1766068930545,0.67,125.87,125.78,38.26403644]
[1766068930745,7.44590337,125.84,125.79,0.7]
[1766068931057,0.67,125.87,125.82,7.44590337]
[1766068931351,7.44590337,125.87,125.82,8.14590337]
[1766068931553,7.44590337,125.86,125.81,7.44590337]
[1766068932153,7.44590337,125.86,125.8,0.7]